bitfinex-derivatives/quotes_SOLF0:USTF0_20251117
["timestamp","ask_amount","ask_price","bid_price","bid_amount"]
[1763382821373,0.04466281,142.05,142.04,3.27]
[1763382822267,0.04466281,142.05,142.04,9.611]
[1763382822473,22.4945808,142.17,142.05,3.27]
[1763382822474,3.32,142.12,142.05,3.27]
[1763382822872,3.32,142.15,142.07,3.27]
[1763382823477,0.05253045,142.12,142.1,3.322872]
[1763382826174,3.37253045,142.12,142.1,0.052872]
[1763382826375,0.05253045,142.12,142.1,3.322872]
[1763382826680,3.37253045,142.12,142.1,0.052872]
[1763382827882,0.05253045,142.12,142.1,3.322872]
[1763382832777,0.05253045,142.12,142.1,2.49510547]
[1763382832983,0.05253045,142.12,142.11,3.27]
[1763382834084,0.05253045,142.12,142.1,5.76510547]
[1763382835383,0.05253045,142.12,142.11,3.27]
[1763382837386,0.05253045,142.12,142.1,3.382872]
[1763382840495,3.09,142.11,142.1,0.052872]
[1763382840703,0.05253045,142.12,142.1,3.382872]
[1763382841096,3.14253045,142.12,142.1,3.382872]
[1763382842197,0.05253045,142.12,142.1,3.382872]
[1763382843301,0.05253045,142.12,142.1,9.721172]
[1763382843599,0.05253045,142.12,142.11,3.33]
[1763382844995,3.14253045,142.12,142.1,0.052872]
[1763382845703,3.14253045,142.12,142.1,3.382872]
[1763382845704,0.05253045,142.12,142.1,3.382872]
[1763382853817,3.14253045,142.12,142.1,0.052872]
[1763382855109,3.14253045,142.12,142.1,3.382872]
[1763382856806,3.14253045,142.12,142.1,0.052872]
[1763382860321,5.53223347,142.11,142.1,0.052872]
[1763382861419,10.19653045,142.12,142.1,0.052872]
[1763382861626,3.09,142.11,142.1,0.052872]
[1763382863122,5.53223347,142.11,142.1,0.052872]
[1763382864825,3.09,142.1,142.06,3.3]
[1763382865017,3.09,142.1,142.04,3.3]
[1763382865211,0.05253045,142.12,142.04,3.3]
[1763382865212,3.09,142.08,142.04,3.3]
[1763382865418,3.09,142.08,142.02,8.97958444]
[1763382865419,2.44223347,142.07,142.01,9.83735097]
[1763382865619,3.09,142.06,142.01,3.3]
[1763382865822,3.09,142.04,142.02,0.04955294]
[1763382874027,0.05383867,142.05,142.03,3.25]
[1763382877340,3.15383867,142.05,142.03,3.25]
[1763382877540,3.15383867,142.05,142.02,0.04955294]
[1763382877838,3.1,142.03,142.02,0.04955294]
[1763382884532,3.1,142.03,141.98,3.25]
[1763382886047,3.1,142.01,141.99,0.05080336]
[1763382891250,3.1,142.01,141.93,3.25]
[1763382891251,3.1,141.99,141.93,3.25]
[1763382891455,7.054,142.06,141.93,3.25]
[1763382891456,3.1,141.97,141.93,3.25]
[1763382892351,0.04795607,141.96,141.94,0.04776365]
[1763382892543,0.04795607,141.96,141.94,3.29776365]
[1763382893449,0.04795607,141.96,141.95,3.25]
[1763382894145,0.04795607,141.96,141.95,9.5951]
[1763382894358,3.1,142.02,141.96,3.25]
[1763382895455,0.04775622,142.0,141.98,3.29769576]
[1763382898255,0.04775622,142.0,141.99,3.25]
[1763382903966,10.234,142.06,141.99,3.25]
[1763382904462,3.18,142.05,142.0,3.25]
[1763382904969,7.054,142.07,142.01,3.25]
[1763382905171,0.04674787,142.04,142.01,3.29542087]
[1763382905761,3.22674787,142.04,142.01,3.29542087]
[1763382906769,0.04674787,142.04,142.01,3.29542087]
[1763382907955,3.22674787,142.04,142.01,0.04542087]
[1763382910263,0.04674787,142.04,142.01,3.29542087]
[1763382912574,3.22674787,142.04,142.01,3.29542087]
[1763382912781,0.04674787,142.04,142.01,3.29542087]
[1763382920984,0.04674787,142.04,142.01,9.63782087]
[1763382921378,0.04674787,142.04,142.02,3.3]
[1763382921686,3.07674787,142.04,142.02,3.3]
[1763382921879,3.07674787,142.04,142.01,3.34542087]
[1763382922679,3.07674787,142.04,142.01,0.04542087]
[1763382929889,0.04674787,142.04,142.01,3.26542087]
[1763382933189,0.04674787,142.04,142.01,9.60762087]
[1763382933499,0.04674787,142.04,142.02,3.22]
[1763382935296,3.19674787,142.04,142.01,3.26542087]
[1763382935495,0.04674787,142.04,142.01,3.26542087]
[1763382935798,3.19674787,142.04,142.01,3.26542087]
[1763382936597,3.19674787,142.04,142.01,0.04542087]
[1763382937397,3.19674787,142.04,142.01,3.26542087]
[1763382940600,0.04674787,142.04,142.01,3.26542087]
[1763382945009,0.04674787,142.04,142.02,3.22]
[1763382948609,9.70511047,142.1,142.03,3.22]
[1763382949102,3.15,142.1,142.04,3.22]
[1763382949404,0.05032025,142.08,142.04,3.22]
[1763382949707,0.05032025,142.08,142.07,3.22]
[1763382951109,0.05032025,142.08,142.06,3.26749867]
[1763382955408,3.20032025,142.08,142.06,3.26749867]
[1763382955798,0.05032025,142.08,142.06,3.26749867]
[1763382960012,3.29032025,142.08,142.06,0.04749867]
[1763382960511,5.68374675,142.07,142.06,0.04749867]
[1763382961918,3.24,142.06,142.02,3.16]
[1763382962918,3.24,142.06,142.03,3.20935596]
[1763382963111,3.29254368,142.06,142.03,3.20935596]
[1763382967713,3.24,142.05,142.03,0.04935596]
[1763382967913,5.68374675,142.04,142.03,0.04935596]
[1763382968122,3.24,142.03,141.99,3.16]
[1763382968624,3.24,142.03,141.95,5.60374675]
[1763382968918,3.24,142.01,141.95,3.16]
[1763382969121,3.24,141.98,141.97,0.04665092]
[1763382969621,3.24,141.98,141.93,3.16]
[1763382969813,3.24,141.97,141.91,5.60374675]
[1763382970514,3.24,141.97,141.91,3.16]
[1763382970924,3.24,141.97,141.93,3.16]
[1763382971123,0.04740003,141.95,141.93,3.16]
[1763382971315,0.04740003,141.95,141.94,2.44374675]
[1763382971522,0.04740003,141.95,141.94,5.60374675]
[1763382972220,0.04740003,141.95,141.94,3.16]
[1763382974621,0.04740003,141.95,141.93,3.16]
[1763382974819,0.04740003,141.95,141.92,0.04799303]
[1763382974820,3.28740003,141.95,141.92,0.04799303]
[1763382975020,3.28740003,141.95,141.92,3.20799303]
[1763382975221,3.28740003,141.95,141.92,0.04799303]
[1763382976420,3.28740003,141.95,141.92,3.20799303]
[1763382978216,3.28740003,141.95,141.92,0.04799303]
[1763382980029,0.04740003,141.95,141.92,3.24799303]
[1763382982026,3.18740003,141.95,141.92,3.24799303]
[1763382984736,3.18740003,141.95,141.92,0.04799303]
[1763382988831,3.2,141.93,141.92,0.04799303]
[1763382989032,3.2,141.93,141.86,3.04]
[1763382989343,3.2,141.91,141.84,3.04]
[1763382989733,3.2,141.89,141.84,3.04]
[1763382989930,2.44374675,141.9,141.85,0.05072273]
[1763382989931,3.2,141.87,141.85,0.05072273]
[1763382994440,3.2467004,141.88,141.85,3.09072273]
[1763383003150,3.2467004,141.88,141.85,0.05072273]
[1763383005452,3.2467004,141.88,141.72,8.6949947]
[1763383005453,3.2,141.86,141.79,5.48374675]
[1763383006246,0.0530226,141.84,141.81,0.0485671]
[1763383006453,3.2530226,141.84,141.81,3.0885671]
[1763383007759,3.2530226,141.84,141.81,0.0485671]
[1763383018165,3.2530226,141.84,141.78,3.04]
[1763383018166,3.2530226,141.84,141.76,3.05]
[1763383018365,3.2,141.84,141.76,3.05]
[1763383019055,0.04707138,141.81,141.79,0.04874111]
[1763383019249,3.29,141.8,141.79,0.04874111]
[1763383020957,3.29,141.8,141.72,3.05]
[1763383021352,3.29,141.78,141.66,3.05]
[1763383021554,3.29,141.75,141.66,3.05]
[1763383021953,37.4,141.8,141.69,3.1030721]
[1763383021954,6.40651372,141.72,141.69,3.1030721]
[1763383022149,3.33497023,141.72,141.69,3.09566581]
[1763383022350,0.04497023,141.72,141.69,3.09566581]
[1763383022765,0.04497023,141.72,141.7,3.05]
[1763383023064,105.32811047,141.85,141.69,3.87914896]
[1763383023065,3.29,141.79,141.72,3.05]
[1763383023662,3.29,141.79,141.73,3.83348315]
[1763383023857,3.29,141.84,141.74,3.05]
[1763383024259,3.34257683,141.8,141.78,0.05173082]
[1763383024561,0.04609044,141.8,141.78,3.10173082]
[1763383025158,0.04609044,141.8,141.79,3.05]
[1763383027365,0.04609044,141.8,141.78,3.10173082]
[1763383027862,3.33609044,141.8,141.78,0.05173082]
[1763383028753,0.04609044,141.8,141.78,0.05173082]
[1763383029758,3.33609044,141.8,141.78,0.05173082]
[1763383029959,9.68809044,141.8,141.78,0.05173082]
[1763383030762,0.04609044,141.8,141.78,3.10173082]
[1763383035165,3.29,141.88,141.79,3.05]
[1763383035361,3.29,141.91,141.81,3.05]
[1763383035766,3.29,141.91,141.83,3.05]
[1763383036164,0.04843579,141.88,141.86,3.10112283]
[1763383037872,6.39693579,141.88,141.86,3.10112283]
[1763383040169,9.53693579,141.88,141.86,0.05112283]
[1763383040465,3.14,141.87,141.8,3.34]
[1763383041268,3.14,141.87,141.82,0.04477678]
[1763383041475,0.05121395,141.85,141.83,3.34]
[1763383046674,3.14,141.93,141.84,3.34]
[1763383046973,3.14,141.95,141.85,3.34]
[1763383047171,3.83007351,141.97,141.88,3.34]
[1763383047370,3.14,141.98,141.88,3.34]
[1763383047968,3.14,141.98,141.89,3.14]
[1763383048169,3.14,141.98,141.92,3.18619018]
[1763383048170,0.05139128,141.95,141.92,3.18619018]
[1763383056991,3.16139128,141.95,141.92,3.18619018]
[1763383057188,0.05139128,141.95,141.92,3.18619018]
[1763383059693,3.16139128,141.95,141.92,0.04619018]
[1763383068401,3.11,141.94,141.86,3.14]
[1763383069303,3.11,141.9,141.89,0.04760851]
[1763383074412,0.05202645,141.91,141.89,3.18760851]
[1763383074708,3.16202645,141.91,141.89,0.04760851]
[1763383076808,3.11,141.9,141.81,3.14]
[1763383077695,3.11,141.9,141.84,0.05105852]
[1763383078004,3.11,141.9,141.77,3.06]
[1763383078005,3.08,141.84,141.77,3.06]
[1763383078902,3.08,141.84,141.79,0.04974202]
[1763383079106,3.13120788,141.82,141.79,3.10974202]
[1763383079310,0.04680528,141.82,141.79,3.11393404]
[1763383080206,3.12680528,141.82,141.79,0.05393404]
[1763383080908,3.12680528,141.82,141.79,3.11393404]
[1763383082506,0.04680528,141.82,141.79,3.11393404]
[1763383084809,3.12680528,141.82,141.79,3.11393404]
[1763383085111,5.5809923,141.82,141.79,0.05393404]
[1763383085412,0.04680528,141.82,141.79,3.11393404]
[1763383087014,0.04680528,141.82,141.81,3.06]
[1763383089012,0.04680528,141.82,141.8,2.45418702]
[1763383089207,3.12680528,141.82,141.79,0.05393404]
[1763383089706,3.08,141.8,141.79,0.05393404]
[1763383090518,3.08,141.8,141.73,3.06]
[1763383090908,5.53418702,141.83,141.76,3.06]
[1763383091308,3.08,141.8,141.76,3.06]
[1763383091516,3.13122048,141.79,141.77,0.04807071]
[1763383091719,0.0444375,141.79,141.77,3.10498029]
[1763383092711,0.0444375,141.79,141.77,0.04498029]
[1763383097916,0.0444375,141.79,141.77,3.10498029]
[1763383103028,3.0844375,141.79,141.77,0.04498029]
[1763383105723,3.0844375,141.79,141.71,3.06]
[1763383106628,3.0844375,141.79,141.74,0.05120307]
[1763383107023,9.65928982,141.79,141.74,0.05120307]
[1763383107223,3.04,141.78,141.74,0.05120307]
[1763383107527,3.04,141.78,141.65,6.53735097]
[1763383107528,3.04,141.78,141.67,3.13]
[1763383108523,0.04591248,141.74,141.67,3.13]
[1763383108927,0.04591248,141.74,141.69,3.13]
[1763383109128,0.04608414,141.73,141.69,3.13]
[1763383109727,0.04608414,141.73,141.65,6.53735097]
[1763383109934,0.05038878,141.7,141.66,3.13]
[1763383110424,0.05038878,141.7,141.67,3.13]
[1763383111630,0.05038878,141.7,141.69,3.13]
[1763383111928,3.15,141.83,141.69,3.13]
[1763383112133,3.15,141.83,141.71,6.3558]
[1763383112336,3.15,141.83,141.72,3.13]
[1763383112836,3.19971622,141.79,141.76,0.05126031]
[1763383115835,3.19971622,141.79,141.76,3.18126031]
[1763383116225,0.04971622,141.79,141.76,3.18126031]
[1763383116425,3.15,141.85,141.76,3.18126031]
[1763383116627,3.15,141.85,141.77,6.353]
[1763383116939,3.15,141.89,141.78,3.13]
[1763383117141,3.15,141.88,141.78,3.13]
[1763383117439,0.05162315,141.84,141.82,0.04503236]
[1763383118636,0.05162315,141.84,141.82,3.17503236]
[1763383118938,35.10195784,141.97,141.84,3.13]
[1763383118939,3.15,141.91,141.84,3.13]
[1763383119238,3.15,141.91,141.85,5.58112279]
[1763383119440,3.15,141.91,141.85,3.13]
[1763383119939,0.04537591,141.89,141.87,0.05359656]
[1763383120929,0.04537591,141.89,141.87,3.18359656]
[1763383121742,3.15,141.99,141.87,3.18359656]
[1763383121936,3.15,141.99,141.87,3.13]
[1763383122734,3.20293084,141.94,141.92,0.04712393]
[1763383122929,3.20304735,141.94,141.92,0.04712393]
[1763383126843,0.05304735,141.94,141.92,0.04712393]
[1763383128451,3.20304735,141.94,141.92,0.04712393]
[1763383131551,3.20304735,141.94,141.86,3.13]
[1763383131736,3.15,141.93,141.86,3.13]
[1763383132558,3.2030162,141.91,141.88,0.0532528]
[1763383132745,3.2030162,141.91,141.88,3.1832528]
[1763383135752,0.0530162,141.91,141.88,3.1832528]
[1763383136953,3.2030162,141.91,141.88,3.1832528]
[1763383137653,3.2030162,141.91,141.88,0.0532528]
[1763383137856,3.2030162,141.91,141.88,3.2732528]
[1763383138258,3.2030162,141.91,141.88,0.0532528]
[1763383138451,10.2550162,141.91,141.88,0.0532528]
[1763383138653,3.27,141.9,141.88,0.0532528]
[1763383140157,0.0530162,141.91,141.88,0.0532528]
[1763383140158,3.3230162,141.91,141.88,0.0532528]
[1763383140355,3.3230162,141.91,141.88,3.2732528]
[1763383140551,0.0530162,141.91,141.88,3.2732528]
[1763383141151,30.94106476,142.01,141.88,4.6732528]
[1763383141152,3.27,141.97,141.88,4.6732528]
[1763383141352,3.27,141.97,141.89,3.22]
[1763383142451,0.04561577,141.94,141.93,3.22]
[1763383145860,3.27,141.97,141.93,3.22]
[1763383146764,0.05260975,141.96,141.93,3.22]
[1763383147064,3.32260975,141.96,141.92,3.27325713]
[1763383147957,0.05260975,141.96,141.92,3.27325713]
[1763383148464,0.05260975,141.96,141.92,9.61965713]
[1763383148649,0.05260975,141.96,141.93,3.22]
[1763383149061,3.27,142.02,141.94,3.22]
[1763383149665,3.27,142.02,141.95,3.22]
[1763383150161,0.04751963,142.0,141.98,3.22]
[1763383154171,3.27,142.05,141.98,3.22]
[1763383154655,3.27,142.08,141.98,3.22]
[1763383155367,0.04635031,142.04,142.03,3.22]
[1763383155665,3.27,142.11,142.03,3.22]
[1763383156468,8.27724426,142.13,142.03,3.22]
[1763383156469,3.28366137,142.08,142.06,0.04538547]
[1763383156767,0.05268026,142.08,142.06,0.04538547]
[1763383156956,3.28268026,142.08,142.06,0.04538547]
[1763383157868,0.05268026,142.08,142.06,3.22538547]
[1763383169580,3.19268026,142.08,142.06,0.04538547]
[1763383170565,0.05268026,142.08,142.06,3.20538547]
[1763383170763,3.14,142.13,142.06,3.20538547]
[1763383171873,0.04880578,142.11,142.06,3.20538547]
[1763383176466,1.22500704,142.17,142.06,3.20538547]
[1763383176467,3.14,142.19,142.09,3.16]
[1763383176671,3.14,142.19,142.11,3.16]
[1763383176863,6.95871971,142.22,142.13,3.16]
[1763383177072,3.14,142.22,142.13,3.16]
[1763383177274,3.14,142.25,142.16,3.16]
[1763383177671,0.053322,142.22,142.19,3.20552573]
[1763383178381,3.193322,142.22,142.19,0.04552573]
[1763383183483,3.14,142.2,142.19,0.04552573]
[1763383189782,3.193322,142.22,142.19,3.20552573]
[1763383189988,0.053322,142.22,142.19,3.20552573]
[1763383194291,3.14,142.28,142.21,3.16]
[1763383195879,0.04860254,142.26,142.23,0.05218049]
[1763383196087,3.14,142.25,142.23,0.05218049]
[1763383197579,5.5191138,142.24,142.23,0.05218049]
[1763383200402,3.08,142.23,142.14,3.27]
[1763383200591,5.5191138,142.2,142.14,3.27]
[1763383200786,2.4391138,142.2,142.14,3.27]
[1763383201283,0.04817876,142.18,142.14,3.27]
[1763383201591,5.5191138,142.23,142.17,3.27]
[1763383202101,12.91012461,142.31,142.17,3.27]
[1763383202102,2.4391138,142.21,142.17,3.27]
[1763383202291,3.08,142.2,142.13,3.27]
[1763383202694,0.04692313,142.18,142.13,3.27]
[1763383202892,0.04692313,142.18,142.16,3.27]
[1763383205501,0.04692313,142.18,142.17,3.27]
[1763383206399,5.5191138,142.28,142.18,3.27]
[1763383206598,5.5191138,142.28,142.21,3.27]
[1763383206790,3.08,142.27,142.21,3.27]
[1763383207498,0.04575521,142.25,142.23,0.05419134]
[1763383208089,0.04575521,142.25,142.23,3.32419134]
[1763383209694,1.22386537,142.31,142.23,3.32419134]
[1763383209897,4.30386537,142.31,142.23,3.32419134]
[1763383210694,0.04803396,142.28,142.23,3.32419134]
[1763383211398,0.04803396,142.28,142.25,3.27]
[1763383212198,3.08,142.34,142.26,2.4391138]
[1763383212398,3.08,142.34,142.27,3.27]
[1763383213295,3.08,142.34,142.25,6.3315]
[1763383213296,3.08,142.34,142.29,3.32302713]
[1763383215705,3.08,142.37,142.29,3.32302713]
[1763383215906,3.08,142.37,142.32,3.32011094]
[1763383216205,3.08,142.41,142.33,3.32129378]
[1763383216411,3.08,142.46,142.34,3.27]
[1763383216611,3.08,142.46,142.37,3.27]
[1763383216910,3.08,142.46,142.4,0.05189193]
[1763383222509,3.08,142.46,142.4,3.10189193]
[1763383226408,3.08,142.46,142.4,0.05189193]
[1763383226613,3.08,142.46,142.4,3.10189193]
[1763383227605,1.22248959,142.48,142.4,3.10189193]
[1763383227913,3.16,142.5,142.4,3.10189193]
[1763383228110,3.16,142.5,142.44,3.32111824]
[1763383231408,1.22193156,142.53,142.44,3.32111824]
[1763383231614,1.22193156,142.53,142.47,3.31658098]
[1763383231615,3.16,142.53,142.47,3.31658098]
[1763383232414,4.38171707,142.56,142.47,3.31658098]
[1763383232611,4.38171707,142.56,142.47,3.27]
[1763383232612,3.16,142.56,142.47,3.27]
[1763383232905,5.58889526,142.56,142.5,3.32300409]
[1763383234207,3.16,142.56,142.5,3.32300409]
[1763383234409,5.58889526,142.56,142.5,3.32300409]
[1763383234908,3.16,142.56,142.5,3.32300409]
[1763383235110,5.58889526,142.56,142.5,3.32300409]
[1763383243915,3.16,142.62,142.54,3.27]
[1763383244116,3.16,142.62,142.53,2.42889526]
[1763383244117,5.58889526,142.61,142.58,3.27]
[1763383244316,5.58889526,142.61,142.58,3.32059777]
[1763383244910,5.58889526,142.61,142.58,0.05059777]
[1763383245121,5.58889526,142.59,142.58,0.05059777]
[1763383245311,5.58889526,142.59,142.38,6.52301783]
[1763383245514,3.16,142.46,142.43,3.27]
[1763383246417,3.20429505,142.46,142.43,3.31572216]
[1763383246719,3.20429505,142.46,142.43,0.04572216]
[1763383247524,0.04429505,142.46,142.43,3.31572216]
[1763383249115,3.20429505,142.46,142.43,0.04572216]
[1763383249317,5.58889526,142.45,142.43,0.04572216]
[1763383249526,2.42889526,142.45,142.43,0.04572216]
[1763383249726,3.20429505,142.46,142.43,0.04572216]
[1763383254428,3.20429505,142.46,142.34,3.27]
[1763383254429,3.16,142.43,142.34,3.27]
[1763383255025,3.16,142.41,142.34,3.27]
[1763383255428,3.21366981,142.39,142.36,3.31493763]
[1763383255622,0.05366981,142.39,142.36,3.31493763]
[1763383256331,3.21366981,142.39,142.36,3.31493763]
[1763383256630,3.21366981,142.39,142.36,0.04493763]
[1763383258234,0.05366981,142.39,142.36,3.16493763]
[1763383260036,3.30366981,142.39,142.36,0.04493763]
[1763383260535,10.33066981,142.39,142.36,0.04493763]
[1763383260737,3.25,142.38,142.36,0.04493763]
[1763383261528,3.25,142.37,142.36,0.04493763]
[1763383263434,3.30366981,142.39,142.36,0.04493763]
[1763383265634,0.05366981,142.39,142.36,3.16493763]
[1763383269043,3.25,142.45,142.36,3.16493763]
[1763383269244,3.25,142.45,142.36,3.12]
[1763383270036,0.04497063,142.42,142.39,3.17187864]
[1763383275547,3.29497063,142.42,142.39,0.05187864]
[1763383275843,3.29497063,142.42,142.33,3.12]
[1763383275844,3.25,142.41,142.33,3.12]
[1763383276347,3.25,142.39,142.28,3.12]
[1763383276847,0.04567658,142.35,142.32,3.16606886]
[1763383279946,3.31,142.45,142.34,3.3]
[1763383280143,3.31,142.44,142.34,3.3]
[1763383281049,0.04501978,142.4,142.38,3.35362154]
[1763383281349,0.04501978,142.4,142.38,0.05362154]
[1763383283050,3.35501978,142.4,142.38,0.05362154]
[1763383283752,3.35501978,142.4,142.32,3.3]
[1763383284659,3.35501978,142.4,142.35,3.34791288]
[1763383288151,0.04501978,142.4,142.35,3.34791288]
[1763383291756,3.11,142.39,142.35,3.34791288]
[1763383292169,0.04501978,142.4,142.35,3.34791288]
[1763383293857,3.15501978,142.4,142.35,3.34791288]
[1763383294157,0.04501978,142.4,142.35,9.87093071]
[1763383294355,0.04501978,142.4,142.36,3.22]
[1763383294558,0.04501978,142.4,142.38,3.22]
[1763383294859,3.11,142.47,142.39,3.22]
[1763383295255,3.11,142.47,142.39,9.5453]
[1763383295450,3.11,142.47,142.4,3.22]
[1763383295653,0.04897951,142.45,142.42,3.2710225]
[1763383300270,3.11,142.53,142.42,3.2710225]
[1763383300471,3.11,142.53,142.42,3.22]
[1763383300670,3.11,142.53,142.45,3.22]
[1763383301171,3.11,142.53,142.48,3.27298038]
[1763383306268,3.11,142.53,142.39,29.8749947]
[1763383306269,3.11,142.51,142.42,3.22]
[1763383307268,3.15453316,142.48,142.45,0.04854579]
[1763383307862,0.04453316,142.48,142.45,3.26854579]
[1763383308068,3.11,142.54,142.45,3.26854579]
[1763383308275,3.11,142.54,142.45,3.22]
[1763383309167,0.02718006,142.51,142.49,3.22]
[1763383310375,3.13718006,142.51,142.48,0.05275167]
[1763383310974,3.13718006,142.51,142.48,3.27275167]
[1763383311579,0.02718006,142.51,142.48,3.27275167]
[1763383312274,3.13718006,142.51,142.48,0.05275167]
[1763383312467,0.02718006,142.51,142.48,3.27275167]
[1763383321587,3.23718006,142.51,142.48,0.05275167]
[1763383324880,0.02718006,142.51,142.48,3.21275167]
[1763383329691,0.02718006,142.51,142.5,3.16]
[1763383331087,3.21,142.57,142.51,3.16]
[1763383331988,3.21,142.57,142.53,3.21334363]
[1763383332488,3.21,142.6,142.53,3.21334363]
[1763383332688,3.21,142.6,142.55,3.20725188]
[1763383339096,3.19,142.57,142.55,0.04725188]
[1763383339390,3.19,142.57,142.55,0.04719572]
[1763383344492,3.19,142.59,142.55,3.25719572]
[1763383344703,3.19,142.62,142.55,3.25719572]
[1763383346298,3.19,142.62,142.57,3.21]
[1763383346494,3.19,142.65,142.59,3.21]
[1763383346701,3.19,142.65,142.61,0.05019424]
[1763383347801,3.19,142.65,142.61,3.35019424]
[1763383348192,3.03,142.68,142.61,3.35019424]
[1763383350098,3.03,142.68,142.63,3.3]
[1763383350301,3.03,142.68,142.64,3.34833245]
[1763383351003,3.03,142.7,142.64,3.34833245]
[1763383352997,3.03,142.7,142.65,3.3]
[1763383354107,3.03,142.72,142.65,3.3]
[1763383354405,3.03,142.72,142.67,0.05342812]
[1763383355694,3.03,142.68,142.67,0.05342812]
[1763383356099,3.03,142.68,142.62,3.3]
[1763383356305,3.03,142.68,142.6,2.4268694]
[1763383356700,3.03,142.68,142.6,5.7268694]
[1763383357208,3.07819836,142.65,142.63,0.04676337]
[1763383357407,0.04819836,142.65,142.63,0.04676337]
[1763383358105,3.07819836,142.65,142.63,0.04676337]
[1763383361207,3.03,142.64,142.55,5.7268694]
[1763383361515,3.03,142.62,142.55,5.7268694]
[1763383362313,3.08352072,142.6,142.57,0.05119739]
[1763383366612,3.08352072,142.6,142.57,3.35119739]
[1763383366806,0.05352072,142.6,142.57,3.35119739]
[1763383367006,0.05352072,142.6,142.58,3.3]
[1763383368012,3.03,142.66,142.59,3.3]
[1763383368211,3.03,142.7,142.64,3.3]
[1763383368522,27.51796971,142.75,142.66,5.7268694]
[1763383368523,3.03,142.74,142.66,5.7268694]
[1763383368817,3.03,142.74,142.66,3.3]
[1763383369018,0.04667077,142.71,142.69,0.04814155]
[1763383371616,3.07667077,142.71,142.69,0.04814155]
[1763383373520,0.04667077,142.71,142.69,0.04814155]
[1763383373728,0.04667077,142.71,142.69,3.34814155]
[1763383385132,3.19667077,142.71,142.69,0.04814155]
[1763383386919,3.19667077,142.71,142.62,3.19]
[1763383387134,3.15,142.7,142.62,3.19]
[1763383387931,0.0453671,142.67,142.65,0.04516894]
[1763383388122,0.0453671,142.67,142.65,3.23516894]
[1763383390830,3.1953671,142.67,142.65,0.04516894]
[1763383395840,0.0453671,142.67,142.65,3.23516894]
[1763383396028,3.1953671,142.67,142.65,0.04516894]
[1763383401450,3.1953671,142.67,142.59,3.17]
[1763383401747,3.15,142.67,142.59,3.17]
[1763383401941,3.27,142.65,142.59,3.17]
[1763383402141,3.27,142.65,142.56,3.17]
[1763383402643,3.3154545,142.62,142.59,0.05160757]
[1763383402849,3.3154545,142.62,142.59,3.22160757]
[1763383403644,0.0454545,142.62,142.59,3.22160757]
[1763383405649,3.3154545,142.62,142.59,3.22160757]
[1763383406644,3.3154545,142.62,142.59,0.05160757]
[1763383407152,3.3154545,142.62,142.59,3.22160757]
[1763383407838,0.0454545,142.62,142.59,3.22160757]
[1763383408548,3.3654545,142.62,142.59,3.22160757]
[1763383410254,3.3654545,142.62,142.59,0.05160757]
[1763383410953,3.3654545,142.62,142.53,3.13]
[1763383411153,3.32,142.62,142.53,3.13]
[1763383411745,3.32,142.58,142.56,0.05036765]
[1763383414954,3.32,142.58,142.5,3.13]
[1763383416154,3.36886963,142.55,142.53,0.050507]
[1763383416355,3.36618949,142.55,142.53,0.050507]
[1763383423163,7.1071233,142.54,142.41,87.9471233]
[1763383423361,3.32,142.53,142.44,3.13]
[1763383424269,3.32,142.49,142.47,0.04856293]
[1763383425160,0.05063288,142.5,142.47,4.57856293]
[1763383425461,0.05063288,142.5,142.48,3.13]
[1763383425667,3.37063288,142.5,142.44,3.13]
[1763383425858,3.32,142.5,142.44,3.13]
[1763383426662,0.04888599,142.48,142.46,3.17744546]
[1763383427762,0.04888599,142.48,142.46,0.04744546]
[1763383430968,0.04888599,142.48,142.46,3.17744546]
[1763383432771,0.04455691,142.54,142.52,3.13]
[1763383439679,3.23455691,142.54,142.51,0.05354675]
[1763383441476,3.23455691,142.54,142.51,3.18354675]
[1763383441880,3.23455691,142.54,142.51,0.05354675]